bitfinex/quotes_BTCUSD_20260126
["timestamp","ask_amount","ask_price","bid_price","bid_amount"]
[1769395597382,0.17546066,87623.0,87611.0,0.00813724]
[1769395597590,0.11409512,87622.0,87611.0,0.00813724]
[1769395597821,0.10254194,87622.0,87611.0,0.00813724]
[1769395598019,0.00014066,87623.0,87614.0,0.14594946]
[1769395598191,0.00014066,87623.0,87615.0,0.15505173]
[1769395598796,0.00014066,87623.0,87609.0,0.0001806]
[1769395598797,0.01141396,87612.0,87609.0,0.0001806]
[1769395598977,0.85956371,87612.0,87600.0,0.64001586]
[1769395599178,0.01141435,87609.0,87600.0,0.64001586]
[1769395599722,0.01141422,87610.0,87600.0,0.64001586]
[1769395600137,0.01141448,87608.0,87600.0,0.64001586]
[1769395600288,0.01141409,87611.0,87600.0,0.64001586]
[1769395601510,0.0114137,87614.0,87600.0,0.64001586]
[1769395601748,0.0114137,87614.0,87597.0,0.14594946]
[1769395601749,0.01141383,87613.0,87597.0,0.14594946]
[1769395601949,0.01141383,87613.0,87598.0,0.14594946]
[1769395602113,0.692534,87617.0,87598.0,0.90034182]
[1769395602480,0.0114137,87614.0,87599.0,0.14594946]
[1769395602683,0.01141344,87616.0,87599.0,0.14594946]
[1769395602895,0.011412,87627.0,87602.0,0.90034182]
[1769395603114,0.011412,87627.0,87600.0,0.81179096]
[1769395603115,0.01141226,87625.0,87605.0,0.14594946]
[1769395603396,0.01141226,87625.0,87609.0,0.14594946]
[1769395603617,0.011412,87627.0,87611.0,0.14594946]
[1769395603800,0.01141213,87626.0,87612.0,0.14715302]
[1769395604099,0.22822213,87634.0,87613.0,0.90034182]
[1769395604100,0.85956136,87630.0,87613.0,0.90034182]
[1769395604284,0.85956136,87630.0,87614.0,0.14715299]
[1769395604464,0.01141174,87629.0,87614.0,0.14715299]
[1769395604665,0.01141187,87628.0,87614.0,0.14715299]
[1769395604872,0.011412,87627.0,87614.0,0.14715299]
[1769395605402,0.01141174,87629.0,87614.0,0.14715299]
[1769395605606,0.01141187,87628.0,87614.0,0.14715299]
[1769395605807,0.01141174,87629.0,87614.0,0.14715299]
[1769395606171,0.01141187,87628.0,87614.0,0.14715299]
[1769395606634,0.011412,87627.0,87614.0,0.14715299]
[1769395606750,0.01141187,87628.0,87614.0,0.14715299]
[1769395606955,0.011412,87627.0,87614.0,0.14715299]
[1769395607161,0.01141187,87628.0,87614.0,0.14715299]
[1769395607578,0.01141174,87629.0,87614.0,0.14715299]
[1769395607810,0.84814975,87630.0,87614.0,0.14715299]
[1769395608008,0.01141122,87633.0,87617.0,0.90034182]
[1769395608225,0.01141109,87634.0,87620.0,0.14594946]
[1769395608398,0.01141135,87632.0,87620.0,0.14609012]
[1769395608614,0.00910238,87631.0,87620.0,0.14609012]
[1769395609374,0.00910238,87632.0,87620.0,0.14609012]
[1769395609575,0.01141148,87631.0,87620.0,0.14609012]
[1769395609683,0.00910238,87630.0,87620.0,0.14609012]
[1769395609889,0.00910238,87631.0,87620.0,0.14609012]
[1769395610348,0.02051386,87631.0,87620.0,0.14609012]
[1769395610514,0.00910238,87631.0,87620.0,0.14609012]
[1769395611053,0.84814975,87634.0,87620.0,0.14609012]
[1769395611256,0.85956084,87634.0,87620.0,0.14609012]
[1769395611505,0.84814975,87634.0,87620.0,0.14609012]
[1769395611715,0.01141174,87629.0,87620.0,0.00014066]
[1769395611905,0.00910238,87628.0,87620.0,0.00014066]
[1769395612201,0.00910238,87629.0,87620.0,0.00014066]
[1769395612387,0.02051412,87629.0,87620.0,0.00014066]
[1769395612582,0.00910238,87629.0,87620.0,0.00014066]
[1769395613003,0.85817016,87635.0,87620.0,0.00014066]
[1769395613249,0.11395582,87634.0,87621.0,0.90034182]
[1769395613452,0.01141005,87642.0,87625.0,0.90034182]
[1769395613570,0.11395324,87641.0,87626.0,0.14594946]
[1769395613787,0.11395324,87640.0,87626.0,0.14594946]
[1769395613989,0.01141005,87642.0,87626.0,0.14594946]
[1769395613990,0.11395324,87639.0,87626.0,0.14594946]
[1769395614211,0.11395324,87638.0,87626.0,0.14594946]
[1769395614426,0.01141005,87642.0,87626.0,0.14594946]
[1769395614635,0.8467592,87643.0,87620.0,0.00014066]
[1769395614636,0.11395354,87641.0,87627.0,0.14594946]
[1769395614839,0.01141018,87641.0,87627.0,0.14594946]
[1769395615467,0.01141044,87639.0,87627.0,0.14594946]
[1769395615675,0.01141031,87640.0,87627.0,0.14594946]
[1769395615878,0.01141005,87642.0,87627.0,0.14594946]
[1769395616120,0.01141018,87641.0,87627.0,0.14594946]
[1769395616335,0.85816912,87643.0,87627.0,0.14594946]
[1769395616550,0.01141031,87640.0,87627.0,0.14594946]
[1769395616967,0.01141018,87641.0,87627.0,0.14594946]
[1769395617188,0.01141005,87642.0,87627.0,0.14594946]
[1769395617379,0.01141018,87641.0,87627.0,0.14594946]
[1769395618335,0.01141005,87642.0,87627.0,0.14594946]
[1769395618539,0.01141005,87642.0,87628.0,0.14594946]
[1769395618540,0.12536726,87641.0,87628.0,0.14594946]
[1769395618758,0.01141018,87641.0,87628.0,0.14594946]
[1769395619207,0.01141005,87642.0,87628.0,0.14594946]
[1769395619418,0.85816912,87643.0,87628.0,0.14594946]
[1769395619637,0.11395056,87642.0,87628.0,0.14594946]
[1769395619859,0.01141005,87642.0,87628.0,0.14594946]
[1769395620328,0.01140992,87643.0,87628.0,0.14594946]
[1769395620542,0.11394833,87642.0,87628.0,0.1458721]
[1769395620735,0.01140992,87643.0,87628.0,0.1458721]
[1769395620986,0.11394833,87642.0,87628.0,0.1458721]
[1769395621148,0.01168888,87651.0,87631.0,0.90034182]
[1769395621149,0.01140914,87649.0,87631.0,0.90034182]
[1769395621349,0.01168888,87651.0,87635.0,0.90034182]
[1769395621350,0.11394351,87648.0,87635.0,0.90034182]
[1769395621576,0.11394351,87647.0,87636.0,0.14594946]
[1769395621771,0.01168888,87651.0,87639.0,0.90034182]
[1769395621772,0.00028,87651.0,87639.0,0.90034182]
[1769395621949,0.00028,87651.0,87642.0,0.14594946]
[1769395622129,0.01140862,87653.0,87644.0,0.14594946]
[1769395622327,0.01140836,87655.0,87644.0,0.14594946]
[1769395622328,0.01140849,87654.0,87644.0,0.14594946]
[1769395622527,0.01140862,87653.0,87644.0,0.14594946]
[1769395622785,0.01140849,87654.0,87644.0,0.14594946]
[1769395623191,0.01140836,87655.0,87644.0,0.14594946]
[1769395623395,0.01140823,87656.0,87644.0,0.14594946]
[1769395623574,0.0114081,87657.0,87644.0,0.14594946]
[1769395623773,0.01140849,87654.0,87644.0,0.14594946]
[1769395623958,0.00910238,87653.0,87644.0,0.14594946]
[1769395624158,0.01140862,87653.0,87644.0,0.14594946]
[1769395624899,0.01140836,87655.0,87644.0,0.14594946]
[1769395625109,0.01140849,87654.0,87644.0,0.14594946]
[1769395625285,0.01140836,87655.0,87644.0,0.14594946]
[1769395625699,0.01140849,87654.0,87644.0,0.14594946]
[1769395626066,0.09096148,87672.0,87644.0,0.14594946]
[1769395626279,0.01140771,87660.0,87650.0,0.63967262]
[1769395627307,0.01140797,87658.0,87650.0,0.63967262]
[1769395627608,0.00014074,87658.0,87650.0,0.63967262]
[1769395628458,0.01154871,87658.0,87650.0,0.63967262]
[1769395628675,0.01140927,87648.0,87637.0,0.13515189]
[1769395628882,0.82731823,87640.0,87624.0,0.18079189]
[1769395629093,0.01141057,87638.0,87624.0,0.18079189]
[1769395629342,0.01141044,87639.0,87624.0,0.18079189]
[1769395629778,0.82731823,87640.0,87624.0,0.18079189]
[1769395630227,0.01141044,87639.0,87624.0,0.18079189]
[1769395630434,0.0114107,87637.0,87624.0,0.18079189]
[1769395630604,0.01141057,87638.0,87624.0,0.18079189]
[1769395631420,0.0114107,87637.0,87624.0,0.18079189]
[1769395631623,0.01141083,87636.0,87624.0,0.18079189]
[1769395631867,0.01141044,87639.0,87624.0,0.18079189]
[1769395632426,0.01141057,87638.0,87624.0,0.04564]
[1769395632637,0.81590792,87636.0,87624.0,0.04564]
[1769395632844,0.01141096,87635.0,87624.0,0.04564]
[1769395633045,0.81590792,87635.0,87624.0,0.04564]
[1769395633840,0.01141109,87634.0,87624.0,0.04564]
[1769395634035,0.01141135,87632.0,87624.0,0.04564]
[1769395634283,0.01141122,87633.0,87624.0,0.04564]
[1769395634730,0.01141148,87631.0,87624.0,0.04564]
[1769395635155,0.01141122,87633.0,87624.0,0.04564]
[1769395635753,0.01141135,87632.0,87624.0,0.04564]
[1769395635995,0.01141148,87631.0,87624.0,0.04564]
[1769395636197,0.01141161,87630.0,87624.0,0.04564]
[1769395636409,0.01141135,87632.0,87624.0,0.04564]
[1769395636641,0.01141148,87631.0,87624.0,0.04564]
[1769395636804,0.01141161,87630.0,87624.0,0.0457474]
[1769395637036,0.01141148,87631.0,87624.0,0.0457474]
[1769395637384,0.02732925,87634.0,87608.0,0.17528]
[1769395637616,0.02732925,87634.0,87612.0,0.00037176]
[1769395637617,0.01141317,87618.0,87612.0,0.00037176]
[1769395637851,0.01141344,87616.0,87612.0,0.00037176]
[1769395638018,0.85282293,87614.0,87600.0,0.63967262]
[1769395638245,0.85282293,87614.0,87600.0,0.64014173]
[1769395638620,0.86423663,87614.0,87600.0,0.64014173]
[1769395639023,0.85282293,87614.0,87600.0,0.64014173]
[1769395639425,0.86423663,87614.0,87600.0,0.64014173]
[1769395639770,0.85282293,87614.0,87600.0,0.64014173]
[1769395640437,0.17528,87616.0,87604.0,0.63967262]
[1769395640669,0.17528,87616.0,87605.0,0.01056013]
[1769395640867,0.18669344,87616.0,87604.0,0.77462349]
[1769395641011,0.18669344,87616.0,87604.0,0.13495087]
[1769395641211,0.18669344,87616.0,87606.0,0.63967262]
[1769395641439,0.0114137,87614.0,87606.0,0.63967262]
[1769395641644,0.01141383,87613.0,87600.0,0.64014173]
[1769395641852,0.01141396,87612.0,87600.0,0.64014173]
[1769395642117,0.01141409,87611.0,87600.0,0.64014173]
[1769395642434,0.86423676,87613.0,87601.0,0.01055385]
[1769395642573,0.01141409,87611.0,87601.0,0.01055385]
[1769395642773,0.01141409,87611.0,87600.0,0.64014173]
[1769395642971,0.01141396,87612.0,87600.0,0.64014173]
[1769395643184,0.01141396,87612.0,87601.0,0.01056174]
[1769395643809,0.01141383,87613.0,87601.0,0.01056174]
[1769395644016,0.8642365,87615.0,87601.0,0.01056174]
[1769395644457,0.01141317,87618.0,87601.0,0.01056174]
[1769395644621,0.01141344,87616.0,87601.0,0.13495087]
[1769395644874,0.06848083,87616.0,87601.0,0.13495087]
[1769395645115,0.01141239,87624.0,87607.0,0.82919647]
[1769395645337,0.85282293,87627.0,87600.0,0.00046911]
[1769395645338,0.17532,87623.0,87612.0,0.13495087]
[1769395645544,0.18673252,87623.0,87613.0,0.1455122]
[1769395645691,0.01141226,87625.0,87613.0,0.1455122]
[1769395645872,0.17532,87624.0,87613.0,0.1455122]
[1769395646074,0.18673239,87624.0,87613.0,0.1455122]
[1769395646610,0.01141265,87622.0,87613.0,0.1455122]
[1769395647255,0.01141265,87622.0,87613.0,0.13495087]
[1769395647461,0.06847828,87619.0,87610.0,0.63967262]
[1769395647662,0.01141304,87619.0,87610.0,0.63967262]
[1769395648260,0.01141291,87620.0,87610.0,0.63967262]
[1769395648465,0.01141304,87619.0,87610.0,0.63967262]
[1769395648670,0.01141344,87616.0,87610.0,0.63967262]
[1769395648871,0.01141344,87616.0,87607.0,0.96414734]
[1769395648872,0.01141344,87616.0,87607.0,0.13495087]
[1769395649263,0.01141357,87615.0,87602.0,0.13495087]
[1769395649476,0.85282293,87614.0,87600.0,0.64014173]
[1769395649690,0.86423663,87614.0,87600.0,0.64014173]
[1769395649891,0.66637637,87614.0,87600.0,0.64014173]
[1769395650277,0.01141396,87612.0,87600.0,0.64014173]
[1769395650476,0.01141383,87613.0,87600.0,0.64014173]
[1769395650801,0.66637637,87614.0,87600.0,0.64014173]
[1769395651006,0.01141396,87612.0,87600.0,0.64014173]
[1769395651383,0.01141409,87611.0,87600.0,0.64014173]
[1769395651594,0.14910707,87617.0,87600.0,0.64014173]
[1769395651773,0.00910238,87616.0,87601.0,0.82919647]
[1769395651977,0.00910238,87616.0,87602.0,0.13495087]
[1769395652180,0.01141278,87621.0,87607.0,0.13495087]
[1769395652377,0.01141278,87621.0,87610.0,0.63967262]
[1769395652578,0.04568,87623.0,87611.0,0.01061823]
[1769395653608,0.01141265,87622.0,87611.0,0.01061823]
[1769395653776,0.05709252,87623.0,87611.0,0.00879226]
[1769395653984,0.04568,87623.0,87611.0,0.00879226]
[1769395654190,0.17532,87625.0,87613.0,0.13571659]
[1769395654391,0.17532,87625.0,87614.0,0.14450874]
[1769395654612,0.18673226,87625.0,87614.0,0.14450874]
[1769395654986,0.01141239,87624.0,87614.0,0.14450874]
[1769395655200,0.01141265,87622.0,87614.0,0.14450874]
[1769395655520,0.01141265,87622.0,87600.0,0.64014173]
[1769395655521,0.01,87614.0,87601.0,0.13571659]
[1769395655715,0.01,87614.0,87601.0,0.14379409]
[1769395655953,0.02234179,87616.0,87601.0,0.14379409]
[1769395656085,0.01141357,87615.0,87601.0,0.14379409]
[1769395656489,0.01141409,87611.0,87601.0,0.14379409]
[1769395656709,0.01141409,87611.0,87601.0,0.13571659]
[1769395657159,0.01141331,87617.0,87601.0,0.13571659]
[1769395657358,0.01141357,87615.0,87601.0,0.14493526]
[1769395658377,0.01141357,87615.0,87601.0,0.13571659]
[1769395658575,0.02234179,87616.0,87601.0,0.13571659]
[1769395658978,0.01141357,87615.0,87601.0,0.13571659]
[1769395659181,0.0114137,87614.0,87601.0,0.13571659]
[1769395659562,0.01141383,87613.0,87601.0,0.13571659]
[1769395659764,0.01141357,87615.0,87601.0,0.13571659]
[1769395660039,0.02234166,87617.0,87601.0,0.13571659]
[1769395660194,0.01092835,87617.0,87601.0,0.13571659]
[1769395660520,0.01141317,87618.0,87601.0,0.13571659]
[1769395660716,0.01092835,87617.0,87601.0,0.13571659]
[1769395661474,0.02234166,87617.0,87601.0,0.13571659]
[1769395661821,0.01092835,87617.0,87601.0,0.13571659]
[1769395662037,0.01092835,87617.0,87601.0,0.1448017]
[1769395662241,0.02234139,87619.0,87601.0,0.1448017]
[1769395662588,0.01141317,87618.0,87601.0,0.1448017]
[1769395662785,0.01092835,87617.0,87601.0,0.1448017]
[1769395663624,0.01141331,87617.0,87601.0,0.1448017]
[1769395663847,0.02234166,87617.0,87601.0,0.85127294]
[1769395664048,0.01092835,87617.0,87602.0,0.13571659]
[1769395664390,0.02234166,87617.0,87602.0,0.13571659]
[1769395664570,0.01092835,87617.0,87602.0,0.13571659]
[1769395664928,0.01092835,87618.0,87602.0,0.13571659]
[1769395665134,0.01141239,87624.0,87608.0,0.63967262]
[1769395665369,0.11403099,87623.0,87609.0,0.00954885]
[1769395665586,0.11403099,87622.0,87609.0,0.00954885]
[1769395665811,0.11403099,87621.0,87609.0,0.00954885]
[1769395665942,0.11403099,87620.0,87609.0,0.00954885]
[1769395666142,0.01141265,87622.0,87609.0,0.00954885]
[1769395666343,0.11406823,87621.0,87609.0,0.00954885]
[1769395666589,0.11406823,87620.0,87609.0,0.00954885]
[1769395666748,0.11411463,87619.0,87609.0,0.00954885]
[1769395666950,0.1401952,87626.0,87609.0,0.00954885]
[1769395667307,0.01141187,87628.0,87611.0,0.13571659]
[1769395667308,0.11411463,87625.0,87611.0,0.13571659]
[1769395667467,0.11411463,87624.0,87612.0,0.00954869]
[1769395667670,0.01141135,87632.0,87614.0,0.63967262]
[1769395667865,0.01141135,87632.0,87606.0,0.01141474]
[1769395667866,0.01141148,87631.0,87620.0,0.63967262]
[1769395668076,0.01141135,87632.0,87615.0,0.97790442]
[1769395668281,0.01141174,87629.0,87615.0,0.13571659]
[1769395668884,0.01141135,87632.0,87615.0,0.13571659]
[1769395669128,0.01141122,87633.0,87615.0,0.14641473]
[1769395669276,0.01141148,87631.0,87615.0,0.14641473]
[1769395669481,0.01141135,87632.0,87615.0,0.14641473]
[1769395669677,0.01141148,87631.0,87615.0,0.14641473]
[1769395669880,0.01141135,87632.0,87615.0,0.14641473]
[1769395670105,0.68358996,87633.0,87615.0,0.14641473]
[1769395670106,0.67217874,87633.0,87615.0,0.14641473]
[1769395670284,0.01141135,87632.0,87615.0,0.14641473]
[1769395670478,0.67217874,87633.0,87615.0,0.14641473]
[1769395670479,0.68358996,87633.0,87615.0,0.14641473]
[1769395670681,0.67217874,87633.0,87615.0,0.14641473]
[1769395671091,0.18673096,87635.0,87620.0,0.64006147]
[1769395671290,0.02732925,87634.0,87620.0,0.77577806]
[1769395671489,0.18673096,87635.0,87620.0,0.77577806]
[1769395671490,0.17532,87635.0,87620.0,0.77577806]
[1769395671735,0.18673096,87635.0,87620.0,0.77577806]
[1769395672091,0.17532,87635.0,87620.0,0.77577806]
[1769395672298,0.18673096,87635.0,87620.0,0.77577806]
[1769395672497,0.01141148,87631.0,87620.0,0.77577806]
[1769395672837,0.02233996,87630.0,87612.0,0.13571659]
[1769395673052,0.02233996,87630.0,87613.0,0.13571659]
[1769395673219,0.01141187,87628.0,87613.0,0.13571659]
[1769395673741,0.01092835,87627.0,87613.0,0.13571659]
[1769395674124,0.02234035,87627.0,87614.0,0.13571659]
[1769395674329,0.01092835,87627.0,87614.0,0.13571659]
[1769395675314,0.01092835,87627.0,87614.0,0.84218783]
[1769395675530,0.01092835,87627.0,87615.0,0.13571659]
[1769395675946,0.02234022,87628.0,87615.0,0.13571659]
[1769395676511,0.01092835,87628.0,87615.0,0.13571659]
[1769395676740,0.01092835,87629.0,87615.0,0.13571659]
[1769395676942,0.01141187,87628.0,87615.0,0.13571659]
[1769395677167,0.01092835,87627.0,87615.0,0.13571659]
[1769395677714,0.01141213,87626.0,87615.0,0.13571659]
[1769395677846,0.011412,87627.0,87615.0,0.13571659]
[1769395678248,0.01141226,87625.0,87615.0,0.13571659]
[1769395678458,0.011412,87627.0,87615.0,0.13571659]
[1769395678659,0.01141213,87626.0,87615.0,0.13571659]
[1769395679176,0.02234035,87627.0,87615.0,0.13571659]
[1769395679561,0.01141213,87626.0,87615.0,0.13571659]
[1769395680610,0.02234035,87627.0,87615.0,0.13571659]
[1769395681643,0.01092835,87627.0,87615.0,0.13571659]
[1769395682074,0.02233996,87630.0,87615.0,0.13571659]
[1769395682803,0.01092835,87630.0,87615.0,0.13571659]
[1769395683011,0.02233996,87630.0,87615.0,0.13571659]
[1769395683165,0.01092835,87630.0,87616.0,0.13435062]
[1769395684364,0.01092835,87630.0,87620.0,0.64006147]
[1769395684611,0.3155152,87635.0,87621.0,0.00933517]
[1769395684780,0.11404109,87634.0,87621.0,0.00933517]
[1769395684987,0.3155152,87635.0,87621.0,0.00933517]
[1769395685197,0.78621986,87634.0,87621.0,0.00933517]
[1769395685398,0.01092835,87633.0,87621.0,0.00933517]
[1769395685797,0.67217874,87634.0,87621.0,0.00933517]
[1769395687098,0.67217874,87634.0,87622.0,0.02188898]
[1769395687355,0.17532,87633.0,87621.0,0.1562396]
[1769395688049,0.17532,87633.0,87621.0,0.02188898]
[1769395689052,0.01141135,87632.0,87621.0,0.02188898]
[1769395689487,0.18673135,87632.0,87621.0,0.02188898]
[1769395689969,0.01141148,87631.0,87621.0,0.02188898]
[1769395690197,0.01141148,87631.0,87600.0,0.00046911]
[1769395690198,0.01141252,87623.0,87600.0,0.00046911]
[1769395690416,0.01,87621.0,87605.0,0.73127517]
[1769395690629,0.01141278,87621.0,87607.0,0.13435062]
[1769395690855,0.01141252,87623.0,87607.0,0.13435062]
[1769395691279,0.01141239,87624.0,87607.0,0.13435062]
[1769395691492,0.01141252,87623.0,87607.0,0.13435062]
[1769395691705,0.01141265,87622.0,87607.0,0.13435062]
[1769395691936,0.01141278,87621.0,87607.0,0.13435062]
[1769395692071,0.01141252,87623.0,87607.0,0.13435062]
[1769395692261,0.01141265,87622.0,87607.0,0.13435062]
[1769395692457,0.01141291,87620.0,87607.0,0.13419644]
[1769395692698,0.01,87607.0,87600.0,0.00046911]
[1769395692911,0.01,87607.0,87600.0,0.73174428]
[1769395693114,0.01141357,87615.0,87602.0,0.86562579]
[1769395693310,0.18673344,87616.0,87602.0,0.86562579]
[1769395693532,0.17532,87616.0,87602.0,0.86562579]
[1769395695314,0.17532,87617.0,87606.0,1.37133664]
[1769395695492,0.02732925,87629.0,87610.0,0.73127517]
[1769395695696,0.06846741,87633.0,87619.0,0.64006147]
[1769395695697,0.11407749,87628.0,87619.0,0.64006147]
[1769395695912,0.17532,87631.0,87619.0,1.37133664]
[1769395696117,0.17532,87632.0,87619.0,1.37133664]
[1769395696527,0.01141161,87630.0,87619.0,1.37133664]
[1769395696722,0.17532,87632.0,87619.0,1.37133664]
[1769395696932,0.18673135,87632.0,87619.0,0.73127517]
[1769395697143,0.01141187,87628.0,87617.0,0.13435062]
[1769395697361,0.01141187,87628.0,87597.0,0.05707953]
[1769395697362,0.01,87617.0,87605.0,0.12454182]
[1769395697587,0.78284571,87617.0,87605.0,0.0001935]
[1769395697794,0.7728461,87614.0,87605.0,0.0001935]
[1769395698033,0.01141383,87613.0,87605.0,0.0001935]
[1769395698232,0.01141409,87611.0,87605.0,0.0001935]
[1769395698428,0.01141409,87611.0,87605.0,1e-08]
[1769395698429,0.77284688,87608.0,87605.0,1e-08]
[1769395699047,0.7614324,87608.0,87605.0,1e-08]
[1769395699246,0.01141435,87609.0,87605.0,1e-08]
[1769395699467,0.01141422,87610.0,87605.0,1e-08]
[1769395699707,0.01141409,87611.0,87605.0,1e-08]
[1769395699891,0.13699706,87612.0,87605.0,1e-08]
[1769395700187,0.14841102,87612.0,87605.0,1e-08]
[1769395700387,0.01141409,87611.0,87605.0,1e-08]
[1769395700589,0.01141422,87610.0,87605.0,1e-08]
[1769395701115,0.01141409,87611.0,87605.0,1e-08]
[1769395701487,0.01141422,87610.0,87605.0,1e-08]
[1769395701692,0.01141409,87611.0,87605.0,1e-08]
[1769395702092,0.01141448,87608.0,87605.0,1e-08]
[1769395702317,0.01141435,87609.0,87605.0,1e-08]
[1769395702526,0.14841102,87612.0,87605.0,1e-08]
[1769395703083,0.01141409,87611.0,87605.0,1e-08]
[1769395703626,0.01141422,87610.0,87605.0,1e-08]
[1769395703829,0.13699706,87612.0,87605.0,1e-08]
[1769395704112,0.16553196,87612.0,87605.0,1e-08]
[1769395704472,0.0285349,87612.0,87605.0,1e-08]
[1769395704669,0.01141317,87618.0,87605.0,0.8591639]
[1769395705014,0.17532,87613.0,87605.0,0.12434833]
[1769395705440,0.01141187,87628.0,87608.0,0.73481557]
[1769395705655,0.01141213,87626.0,87612.0,0.73481557]
[1769395705876,0.01141265,87622.0,87613.0,0.12434832]
[1769395706095,0.01141213,87626.0,87613.0,0.12427091]
[1769395706312,0.01141239,87624.0,87610.0,0.64006147]
[1769395706530,0.01141226,87625.0,87610.0,0.64006147]
[1769395706698,0.01141239,87624.0,87610.0,0.64006147]
[1769395706919,0.01141252,87623.0,87610.0,0.64006147]
[1769395707113,0.01141226,87625.0,87610.0,0.64006147]
[1769395707315,0.01141239,87624.0,87610.0,0.64006147]
[1769395707516,0.01141252,87623.0,87610.0,0.64006147]
[1769395708074,0.01141265,87622.0,87610.0,0.64006147]
[1769395708414,0.01141213,87626.0,87610.0,0.64006147]
[1769395708415,0.7728444,87627.0,87610.0,0.64006147]
[1769395708665,0.39905116,87629.0,87610.0,0.64006147]
[1769395708666,0.16667229,87629.0,87612.0,0.12434832]
[1769395708850,0.16667229,87629.0,87614.0,0.12434832]
[1769395709079,0.7614324,87634.0,87619.0,0.64006147]
[1769395709080,0.90984055,87634.0,87619.0,0.64006147]
[1769395709257,0.01141122,87633.0,87614.0,0.73481557]
[1769395709436,0.01141122,87633.0,87615.0,0.85916389]
[1769395709611,0.89842946,87634.0,87615.0,0.85916389]
[1769395709821,0.89842946,87634.0,87616.0,0.85916389]
[1769395710021,0.89842946,87634.0,87620.0,0.64006147]
[1769395710425,0.89861145,87634.0,87620.0,0.64006147]
[1769395710828,0.00018199,87634.0,87620.0,0.64006147]
[1769395711737,0.00018199,87634.0,87616.0,0.73481557]
[1769395711738,0.00018199,87634.0,87624.0,0.64006147]
[1769395711940,0.00018199,87634.0,87625.0,0.73481557]
[1769395712143,0.0114094,87647.0,87628.0,0.12434832]
[1769395712371,0.0114094,87647.0,87624.0,0.64006147]
[1769395712372,0.7614324,87650.0,87633.0,0.64006147]
[1769395712739,0.77284141,87650.0,87633.0,0.85916389]
[1769395712948,0.7614324,87650.0,87633.0,0.85916389]
[1769395713151,0.01140901,87650.0,87635.0,0.73481557]
[1769395713303,0.000182,87654.0,87637.0,0.76692877]
[1769395713528,0.000182,87654.0,87641.0,0.90170259]
[1769395713703,0.000182,87654.0,87641.0,0.9018433]
[1769395714111,0.000182,87654.0,87642.0,0.13477382]
[1769395714355,0.000182,87654.0,87642.0,0.90170259]
[1769395714593,0.17532,87656.0,87642.0,0.90170259]
[1769395715235,0.01140784,87659.0,87642.0,0.90170259]
[1769395715462,0.01157571,87660.0,87649.0,0.64006147]
[1769395715684,0.01140784,87659.0,87643.0,0.13477382]
[1769395716344,0.000168,87660.0,87650.0,0.76692877]
[1769395716563,0.000168,87660.0,87653.0,0.76692877]
[1769395716768,0.74864522,87676.0,87649.0,0.64006147]
[1769395716769,0.74864522,87676.0,87656.0,0.13477382]
[1769395716972,0.74864522,87676.0,87666.0,0.64006147]
[1769395716973,0.0002675,87676.0,87666.0,0.64006147]
[1769395717252,0.0002675,87676.0,87669.0,0.90170259]
[1769395717477,0.0002675,87676.0,87669.0,0.13477382]
[1769395717591,0.0002675,87676.0,87664.0,0.90170259]
[1769395717807,0.01167312,87676.0,87660.0,0.64006147]
[1769395718031,0.0002675,87676.0,87660.0,0.64006147]
[1769395718244,0.0002675,87676.0,87660.0,0.77483529]
[1769395718245,0.02878157,87676.0,87660.0,0.77483529]
[1769395718442,0.01140575,87675.0,87660.0,0.77483529]
[1769395718679,0.02840024,87674.0,87660.0,0.77483529]
[1769395719102,0.02840024,87674.0,87660.0,1.54176406]
[1769395719302,0.02851439,87675.0,87660.0,1.54176406]
[1769395719504,0.03992014,87675.0,87660.0,1.54176406]
[1769395719708,0.01140706,87665.0,87658.0,0.17532]
[1769395719832,0.01,87660.0,87652.0,0.17532]
[1769395720456,0.02851765,87665.0,87652.0,0.17532]
[1769395720649,0.02851732,87666.0,87652.0,0.94224877]
[1769395726298,0.02851765,87665.0,87652.0,1.07702259]
[1769395726422,0.74837772,87670.0,87652.0,1.07702259]
[1769395726423,0.01140667,87668.0,87652.0,1.07702259]
[1769395726633,0.02808074,87667.0,87652.0,1.07702259]
[1769395727296,0.02851732,87666.0,87652.0,1.07702259]
[1769395727473,0.02851635,87669.0,87652.0,1.07702259]
[1769395727663,0.01140693,87666.0,87652.0,1.07702259]
[1769395727915,0.027452,87665.0,87652.0,1.07702259]
[1769395728119,0.02575199,87666.0,87652.0,1.07702259]
[1769395728320,0.01140771,87660.0,87642.0,0.13477382]
[1769395728449,0.01140732,87663.0,87642.0,0.13477382]
[1769395728450,0.12572402,87659.0,87648.0,0.17528]
[1769395728658,0.87410174,87659.0,87648.0,0.17528]
[1769395729115,0.70831349,87659.0,87648.0,0.17528]
[1769395730584,0.01140797,87658.0,87648.0,0.17528]
[1769395730790,0.71972133,87659.0,87648.0,0.17528]
[1769395731188,0.71904856,87659.0,87648.0,0.17528]
[1769395731389,0.71904856,87659.0,87642.0,0.13477382]
[1769395731390,0.70764072,87659.0,87642.0,0.13477382]
[1769395731576,0.0114081,87657.0,87642.0,0.13477382]
[1769395731776,0.01140849,87654.0,87642.0,0.13477382]
[1769395731983,0.01140836,87655.0,87642.0,0.13477382]
[1769395732189,0.01140823,87656.0,87642.0,0.13477382]
[1769395732879,0.67432537,87657.0,87642.0,0.13477382]
[1769395733106,0.74837772,87654.0,87641.0,0.17524]
[1769395733932,0.75978621,87654.0,87641.0,0.17524]
[1769395734144,0.01140862,87653.0,87641.0,0.17524]
[1769395734357,0.01140888,87651.0,87641.0,0.17524]
[1769395734561,0.74837772,87648.0,87641.0,0.17524]
[1769395734783,0.74837772,87648.0,87632.0,0.35565382]
[1769395734996,0.0114094,87647.0,87632.0,0.35565382]
[1769395735195,0.06845883,87644.0,87632.0,0.35565382]
[1769395735414,0.01141031,87640.0,87632.0,0.22088]
[1769395735628,0.01141096,87635.0,87618.0,0.13477382]
[1769395735827,0.74837772,87634.0,87618.0,0.13477382]
[1769395736031,0.74837772,87634.0,87620.0,0.63968947]
[1769395736468,0.00014063,87635.0,87621.0,0.13477382]
[1769395737489,0.01141135,87632.0,87621.0,0.13477382]
[1769395737717,0.01141148,87631.0,87621.0,0.13477382]
[1769395737954,0.75978933,87630.0,87619.0,0.0002675]
[1769395738163,0.74837772,87630.0,87620.0,0.63968947]
[1769395738310,0.07354251,87634.0,87620.0,0.63968947]
[1769395738311,0.0849536,87634.0,87620.0,0.63968947]
[1769395738522,0.02967484,87632.0,87620.0,0.63968947]
[1769395738844,0.01826349,87632.0,87620.0,0.63968947]
[1769395739499,0.74837772,87631.0,87619.0,0.0002675]
[1769395739816,0.02967484,87632.0,87619.0,0.0002675]
[1769395739817,0.01141265,87622.0,87619.0,0.0002675]
[1769395740006,0.0097325,87617.0,87606.0,0.13477382]
[1769395740411,0.75979063,87620.0,87606.0,0.13477382]
[1769395740656,0.01141304,87619.0,87606.0,0.13477382]
[1769395740999,0.74837772,87620.0,87606.0,0.13477382]
[1769395741203,0.74837772,87620.0,87609.0,0.63968947]
[1769395741408,0.74837772,87620.0,87606.0,0.13477382]
[1769395741612,0.75979063,87620.0,87606.0,0.13477382]